fUSD/lending_fUSD_20260625
["ID","MTS","AMOUNT","RATE_DAILY","PERIOD"]
[426331447,1782316946000,-151.0,0.00012283,2]
[426331476,1782317302000,-166.66,0.00011948,2]
[426331489,1782317356000,-218.0551245,0.00011948,2]
[426331491,1782317409000,-215.91665307,0.00012005,2]
[426331515,1782317432000,-500.0,0.00012072,2]
[426331512,1782317432000,-500.0,0.00012072,2]
[426331508,1782317432000,-500.0,0.00012072,2]
[426331506,1782317432000,-250.0,0.00011975,2]
[426331507,1782317432000,-500.0,0.00012072,2]
[426331509,1782317432000,-500.0,0.00012072,2]
[426331510,1782317432000,-500.0,0.00012072,2]
[426331505,1782317432000,-153.75,0.00011945,2]
[426331517,1782317432000,-500.0,0.00012072,2]
[426331518,1782317432000,-363.01388657,0.00012072,2]
[426331513,1782317432000,-500.0,0.00012072,2]
[426331514,1782317432000,-500.0,0.00012072,2]
[426331516,1782317432000,-500.0,0.00012072,2]
[426331511,1782317432000,-500.0,0.00012072,2]
[426331556,1782317433000,-500.0,0.00012072,2]
[426331564,1782317433000,-500.0,0.00012072,2]
[426331563,1782317433000,-500.0,0.00012072,2]
[426331553,1782317433000,-500.0,0.00012072,2]
[426331554,1782317433000,-500.0,0.00012072,2]
[426331551,1782317433000,-500.0,0.00012072,2]
[426331549,1782317433000,-500.0,0.00012072,2]
[426331548,1782317433000,-500.0,0.00012072,2]
[426331544,1782317433000,-500.0,0.00012072,2]
[426331558,1782317433000,-500.0,0.00012072,2]
[426331546,1782317433000,-500.0,0.00012072,2]
[426331565,1782317433000,-500.0,0.00012072,2]
[426331566,1782317433000,-500.0,0.00012072,2]
[426331555,1782317433000,-500.0,0.00012072,2]
[426331557,1782317433000,-619.16019182,0.00012072,2]
[426331560,1782317433000,-500.0,0.00012072,2]
[426331561,1782317433000,-160.50418059,0.00012072,2]
[426331562,1782317433000,-500.33504447,0.00012072,2]
[426331552,1782317433000,-500.0,0.00012072,2]
[426331567,1782317433000,-250.0,0.00012072,2]
[426331570,1782317433000,-780.23092373,0.00012073,2]
[426331568,1782317433000,-160.0,0.00012072,2]
[426331576,1782317433000,-1000.0,0.00012312,2]
[426331575,1782317433000,-178.84,0.00012274,2]
[426331559,1782317433000,-500.0,0.00012072,2]
[426331550,1782317433000,-500.0,0.00012072,2]
[426331534,1782317433000,-500.0,0.00012072,2]
[426331545,1782317433000,-500.0,0.00012072,2]
[426331521,1782317433000,-500.0,0.00012072,2]
[426331519,1782317433000,-136.98611343,0.00012072,2]
[426331520,1782317433000,-500.0,0.00012072,2]
[426331522,1782317433000,-500.0,0.00012072,2]
[426331524,1782317433000,-500.0,0.00012072,2]
[426331530,1782317433000,-500.0,0.00012072,2]
[426331529,1782317433000,-500.0,0.00012072,2]
[426331527,1782317433000,-500.0,0.00012072,2]
[426331526,1782317433000,-500.0,0.00012072,2]
[426331523,1782317433000,-500.0,0.00012072,2]
[426331525,1782317433000,-500.0,0.00012072,2]
[426331528,1782317433000,-191.6019182,0.00012072,2]
[426331532,1782317433000,-500.0,0.00012072,2]
[426331540,1782317433000,-500.0,0.00012072,2]
[426331535,1782317433000,-500.0,0.00012072,2]
[426331537,1782317433000,-500.0,0.00012072,2]
[426331536,1782317433000,-500.0,0.00012072,2]
[426331541,1782317433000,-500.0,0.00012072,2]
[426331533,1782317433000,-500.0,0.00012072,2]
[426331531,1782317433000,-500.0,0.00012072,2]
[426331572,1782317433000,-166.66,0.000122,2]
[426331539,1782317433000,-500.0,0.00012072,2]
[426331538,1782317433000,-500.0,0.00012072,2]
[426331543,1782317433000,-500.0,0.00012072,2]
[426331542,1782317433000,-500.0,0.00012072,2]
[426331547,1782317433000,-500.0,0.00012072,2]
[426331574,1782317433000,-168.81,0.00012257,2]
[426331569,1782317433000,-216.42324807,0.00012072,2]
[426331573,1782317433000,-261.05,0.0001225,2]
[426331604,1782317433000,-590.85498859,0.00012955,2]
[426331605,1782317433000,-285.05513885,0.00012958,2]
[426331606,1782317433000,-10017.9759931,0.00012959,5]
[426331607,1782317433000,-151.0,0.0001296,2]
[426331608,1782317433000,-151.0,0.0001296,2]
[426331611,1782317433000,-152.0,0.0001296,2]
[426331613,1782317433000,-151.0,0.0001296,2]
[426331617,1782317433000,-318.0,0.00012961,2]
[426331616,1782317433000,-315.0,0.00012961,2]
[426331571,1782317433000,-2059.04175218,0.00012073,2]
[426331614,1782317433000,-150.0,0.0001296,2]
[426331618,1782317433000,-317.0,0.00012961,2]
[426331603,1782317433000,-166.66,0.00012954,2]
[426331621,1782317433000,-317.0,0.00012961,2]
[426331619,1782317433000,-151.0,0.00012961,2]
[426331620,1782317433000,-314.0,0.00012961,2]
[426331631,1782317433000,-309.0,0.00012961,2]
[426331623,1782317433000,-311.0,0.00012961,2]
[426331622,1782317433000,-151.0,0.00012961,2]
[426331629,1782317433000,-151.0,0.00012961,2]
[426331624,1782317433000,-321.0,0.00012961,2]
[426331625,1782317433000,-151.0,0.00012961,2]
[426331630,1782317433000,-312.0,0.00012961,2]
[426331626,1782317433000,-313.0,0.00012961,2]
[426331627,1782317433000,-317.0,0.00012961,2]
[426331628,1782317433000,-317.0,0.00012961,2]
[426331612,1782317433000,-153.0,0.0001296,2]
[426331600,1782317433000,-291.70918599,0.00012687,2]
[426331615,1782317433000,-160.0,0.0001296,2]
[426331610,1782317433000,-151.0,0.0001296,2]
[426331578,1782317433000,-166.66,0.00012451,2]
[426331602,1782317433000,-163.81,0.00012703,2]
[426331577,1782317433000,-1024.44,0.00012333,2]
[426331579,1782317433000,-150.14,0.0001267,2]
[426331582,1782317433000,-500.0,0.00012686,2]
[426331586,1782317433000,-577.69018119,0.00012686,2]
[426331585,1782317433000,-500.0,0.00012686,2]
[426331583,1782317433000,-270.07114691,0.00012686,2]
[426331584,1782317433000,-328.022759,0.00012686,2]
[426331580,1782317433000,-500.0,0.00012686,2]
[426331587,1782317433000,-367.31604365,0.00012686,2]
[426331581,1782317433000,-500.0,0.00012686,2]
[426331588,1782317433000,-500.0,0.00012687,2]
[426331592,1782317433000,-311.59945034,0.00012687,2]
[426331589,1782317433000,-500.0,0.00012687,2]
[426331609,1782317433000,-152.0,0.0001296,2]
[426331597,1782317433000,-150.0,0.00012687,2]
[426331595,1782317433000,-500.0,0.00012687,2]
[426331593,1782317433000,-500.0,0.00012687,2]
[426331601,1782317433000,-166.66,0.00012703,2]
[426331594,1782317433000,-500.0,0.00012687,2]
[426331599,1782317433000,-150.0,0.00012687,2]
[426331598,1782317433000,-150.0,0.00012687,2]
[426331591,1782317433000,-500.0,0.00012687,2]
[426331590,1782317433000,-500.0,0.00012687,2]
[426331596,1782317433000,-536.79842541,0.00012687,2]
[426331648,1782317434000,-2253.3,0.00013699,2]
[426331645,1782317434000,-9559.05,0.00013699,2]
[426331649,1782317434000,-9999.99,0.00013699,2]
[426331647,1782317434000,-150.99,0.00013699,2]
[426331652,1782317434000,-999.99,0.00013699,2]
[426331651,1782317434000,-13398.08,0.00013699,2]
[426331654,1782317434000,-9999.99,0.00013699,2]
[426331646,1782317434000,-299.99,0.00013699,2]
[426331655,1782317434000,-261.05,0.00013781,2]
[426331650,1782317434000,-9276.13,0.00013699,2]
[426331644,1782317434000,-9999.99,0.00013699,2]
[426331640,1782317434000,-151.0,0.00013302,2]
[426331638,1782317434000,-315.0,0.00013264,2]
[426331637,1782317434000,-166.66,0.00013206,2]
[426331636,1782317434000,-153.54,0.00013182,2]
[426331639,1782317434000,-153.0,0.00013264,2]
[426331641,1782317434000,-151.0,0.00013415,2]
[426331635,1782317434000,-250.0,0.00013139,2]
[426331634,1782317434000,-11040.0,0.00013,2]
[426331633,1782317434000,-771.88,0.00012965,2]
[426331632,1782317434000,-236.53675,0.00012961,2]
[426331653,1782317434000,-200.0,0.00013699,2]
[426331643,1782317434000,-1603.93,0.00013608,2]
[426331656,1782317434000,-1000.0,0.00013923,2]
[426331642,1782317434000,-2000.0,0.00013543,2]
[426331658,1782317434000,-2306.0429,0.00014091,2]
[426331681,1782317434000,-23797.940316,0.00014845,2]
[426331679,1782317434000,-32438.41895563,0.00014845,2]
[426331678,1782317434000,-151.0,0.00014845,2]
[426331677,1782317434000,-391.873965,0.00014845,2]
[426331673,1782317434000,-151.0,0.00014845,2]
[426331674,1782317434000,-151.0,0.00014845,2]
[426331669,1782317434000,-20552.1096921,0.00014503,2]
[426331676,1782317434000,-500.0,0.00014845,2]
[426331671,1782317434000,-11859.05525928,0.00014596,2]
[426331680,1782317434000,-3848.34785231,0.00014845,2]
[426331668,1782317434000,-9615.9048507,0.00014503,2]
[426331657,1782317434000,-1755.9358,0.00014091,2]
[426331675,1782317434000,-500.0,0.00014845,2]
[426331662,1782317434000,-1000.0,0.0001419,2]
[426331664,1782317434000,-500.0,0.0001419,2]
[426331665,1782317434000,-421465.84531504,0.00014191,2]
[426331659,1782317434000,-2500.0,0.00014091,2]
[426331661,1782317434000,-1599.16954846,0.00014091,2]
[426331670,1782317434000,-4935.69162786,0.00014511,2]
[426331660,1782317434000,-1599.62501948,0.00014091,2]
[426331666,1782317434000,-20387.46668496,0.00014191,2]
[426331667,1782317434000,-485.53867307,0.00014407,2]
[426331672,1782317434000,-2000.0,0.000148,2]
[426331663,1782317434000,-500.0,0.0001419,2]
[426331698,1782317437000,-1208.5,0.00014945,2]
[426331708,1782317437000,-514.3789797,0.00014999,2]
[426331697,1782317437000,-13071.08482209,0.00014945,2]
[426331707,1782317437000,-500.0,0.00014999,2]
[426331693,1782317437000,-200.0,0.00014945,2]
[426331692,1782317437000,-500.0,0.0001493,2]
[426331689,1782317437000,-173.72983617,0.000149,2]
[426331691,1782317437000,-387.08162959,0.000149,2]
[426331688,1782317437000,-625.23452356,0.000149,2]
[426331702,1782317437000,-500.0,0.00014998,2]
[426331686,1782317437000,-200.0,0.0001488,2]
[426331694,1782317437000,-200.0,0.00014945,2]
[426331699,1782317437000,-741.27172777,0.00014945,2]
[426331685,1782317437000,-39351.72837606,0.00014845,2]
[426331703,1782317437000,-502.31006982,0.00014998,2]
[426331700,1782317437000,-500.0,0.00014998,2]
[426331716,1782317437000,-500.0,0.00014999,2]
[426331715,1782317437000,-500.0,0.00014999,2]
[426331714,1782317437000,-500.0,0.00014999,2]
[426331709,1782317437000,-514.3852568,0.00014999,2]
[426331711,1782317437000,-500.0,0.00014999,2]
[426331713,1782317437000,-500.0,0.00014999,2]
[426331695,1782317437000,-200.0,0.00014945,2]
[426331710,1782317437000,-500.0,0.00014999,2]
[426331705,1782317437000,-500.0,0.00014999,2]
[426331704,1782317437000,-500.0,0.00014998,2]
[426331701,1782317437000,-500.0,0.00014998,2]
[426331712,1782317437000,-500.0,0.00014999,2]
[426331706,1782317437000,-502.27247969,0.00014999,2]
[426331720,1782317438000,-156.74252702,0.00014999,2]
[426331718,1782317438000,-500.0,0.00014999,2]
[426331717,1782317438000,-606.17365667,0.00014999,2]
[426331719,1782317438000,-500.0,0.00014999,2]
[426331722,1782317438000,-172.45,0.00014999,2]
[426331721,1782317438000,-500.0,0.00014999,2]
[426331725,1782317438000,-1295.0,0.00015,5]
[426331724,1782317438000,-1618.0,0.00015,5]
[426331726,1782317438000,-1000.0,0.00015,2]
[426331728,1782317438000,-3732.88444075,0.00015,2]
[426331727,1782317438000,-32003.64089611,0.00015,2]
[426331723,1782317438000,-951.0,0.00015,5]
[426331901,1782317439000,-163131.40333607,0.00015,2]
[426331915,1782317440000,-604.4,0.00015,2]
[426332064,1782317444000,-553.89076398,0.00015,2]
[426332060,1782317444000,-113.21181892,0.00013991,2]
[426332063,1782317444000,-183301.02513537,0.00015,2]
[426332061,1782317444000,-3746.80512179,0.00013991,2]
[426332062,1782317444000,-2595.87815805,0.00013991,2]
[426332065,1782317444000,-2799.58221255,0.00015,2]
[426332070,1782317444000,-232735.83858793,0.00015,2]
[426332068,1782317444000,-300.19788409,0.00015,2]
[426332069,1782317444000,-31832.78580169,0.00015,2]
[426332067,1782317444000,-1935.23402816,0.00015,2]
[426332072,1782317444000,-256.66705332,0.00015,2]
[426332071,1782317444000,-8992.08837577,0.00015,2]
[426332066,1782317444000,-404.1909,0.00015,2]
[426332075,1782317445000,-3026.39994,0.00015,2]
[426332076,1782317446000,-581.73,0.00015,2]
[426332087,1782317765000,-152.03,0.00011977,2]
[426332098,1782318008000,2000.4,0.00028767,120]
[426332099,1782318042000,746.7502048,7.913e-05,2]
[426332100,1782318120000,-150.0,0.00012471,2]
[426332101,1782318174000,-250.0,0.00012502,2]
[426332102,1782318228000,-1000.0,0.00012502,2]
[426332103,1782318281000,-749.50218466,0.00012502,2]
[426332106,1782318301000,-250.49781534,0.00012502,2]
[426332109,1782318354000,-441.32,0.00012473,2]
[426332113,1782318407000,-160.0,0.00012503,2]
[426332118,1782318460000,-158.64,0.00012327,2]
[426332119,1782318514000,-1546.14780495,0.00012321,2]
[426332120,1782318515000,-135.54219505,0.00012321,2]
[426332121,1782318515000,-224.85241,0.00012321,2]
[426332122,1782318515000,-250.0,0.00012517,2]
[426332124,1782318515000,-500.0,0.00012531,2]
[426332126,1782318515000,-500.0,0.00012531,2]
[426332123,1782318515000,-150.0,0.0001253,2]
[426332127,1782318515000,-500.0,0.00012531,2]
[426332128,1782318515000,-500.0,0.00012531,2]
[426332129,1782318515000,-65.87791046,0.00012531,2]
[426332130,1782318515000,-434.12208954,0.00012531,2]
[426332131,1782318515000,-59.59194611,0.00012531,2]
[426332125,1782318515000,-500.0,0.00012531,2]
[426332132,1782318535000,-500.0,0.00012533,2]
[426332166,1782318631000,-441.32,0.00012785,2]
[426332164,1782318631000,-388.44,0.00012718,2]
[426332159,1782318631000,-160.0,0.00012321,2]
[426332157,1782318631000,-500.0,0.0001232,2]
[426332155,1782318631000,-41.29102342,0.0001232,2]
[426332156,1782318631000,-500.0,0.0001232,2]
[426332153,1782318631000,-500.0,0.0001232,2]
[426332163,1782318631000,-166.66,0.00012564,2]
[426332154,1782318631000,-458.70897658,0.0001232,2]
[426332160,1782318631000,-200.0,0.00012395,2]
[426332158,1782318631000,-612.45071309,0.0001232,2]
[426332162,1782318631000,-171.71,0.0001256,2]
[426332161,1782318631000,-288.7644505,0.0001244,2]
[426332174,1782318631000,-150.99,0.00012827,2]
[426332173,1782318631000,-5181.63,0.00012827,2]
[426332175,1782318631000,-172.0,0.00012828,2]
[426332170,1782318631000,-111.61837187,0.00012827,2]
[426332172,1782318631000,-9999.99,0.00012827,2]
[426332171,1782318631000,-38.38162813,0.00012827,2]
[426332167,1782318631000,-161.74,0.00012807,2]
[426332165,1782318631000,-160.0,0.0001275,2]
[426332168,1782318631000,-236.67078801,0.00012809,2]
[426332169,1782318631000,-263.32921199,0.00012809,2]
[426332221,1782318632000,-150.0,0.00013444,2]
[426332226,1782318632000,-150.0,0.00013446,2]
[426332223,1782318632000,-236.54387101,0.00013444,2]
[426332232,1782318632000,-166.67,0.00013497,2]
[426332227,1782318632000,-150.0,0.00013446,2]
[426332229,1782318632000,-218.97647269,0.00013446,2]
[426332236,1782318632000,-310.0,0.00013537,2]
[426332234,1782318632000,-377.698002,0.000135,2]
[426332238,1782318632000,-185.93879397,0.00013553,2]
[426332240,1782318632000,-166.66,0.00013622,2]
[426332243,1782318632000,-239.11352731,0.00013699,2]
[426332244,1782318632000,-600.0,0.0001372,2]
[426332246,1782318632000,-600.0,0.0001372,2]
[426332245,1782318632000,-600.0,0.0001372,2]
[426332248,1782318632000,-600.0,0.0001372,2]
[426332247,1782318632000,-600.0,0.0001372,2]
[426332250,1782318632000,-300.0,0.0001372,2]
[426332253,1782318632000,-300.0,0.00013753,2]
[426332252,1782318632000,-441.32,0.0001372,2]
[426332251,1782318632000,-300.0,0.0001372,2]
[426332249,1782318632000,-300.0,0.0001372,2]
[426332212,1782318632000,-150.0,0.00013444,2]
[426332242,1782318632000,-200.0,0.00013699,2]
[426332216,1782318632000,-150.0,0.00013444,2]
[426332195,1782318632000,-166.66,0.00013093,2]
[426332220,1782318632000,-150.0,0.00013444,2]
[426332255,1782318632000,-166.66,0.00013886,2]
[426332176,1782318632000,-172.49953064,0.00012828,2]
[426332177,1782318632000,-9999.99,0.00012828,2]
[426332179,1782318632000,-9999.99,0.00012828,2]
[426332178,1782318632000,-24306.32,0.00012828,2]
[426332193,1782318632000,-166.66,0.00012828,2]
[426332189,1782318632000,-250.79,0.00012828,2]
[426332180,1782318632000,-19999.99,0.00012828,2]
[426332191,1782318632000,-299.99,0.00012828,2]
[426332196,1782318632000,-441.32,0.00013097,2]
[426332182,1782318632000,-9999.99,0.00012828,2]
[426332187,1782318632000,-9999.99,0.00012828,2]
[426332185,1782318632000,-999.99,0.00012828,2]
[426332183,1782318632000,-2603.58,0.00012828,2]
[426332181,1782318632000,-109214.46,0.00012828,2]
[426332198,1782318632000,-1000.0,0.000131,2]
[426332200,1782318632000,-536.95,0.00013279,2]
[426332202,1782318632000,-166.66,0.00013357,2]
[426332204,1782318632000,-441.32,0.00013408,2]
[426332210,1782318632000,-4999.99,0.00013433,2]
[426332218,1782318632000,-270.87512819,0.00013444,2]
[426332206,1782318632000,-1000.0,0.00013433,2]
[426332208,1782318632000,-159.27,0.00013433,2]
[426332214,1782318632000,-150.0,0.00013444,2]
[426332254,1782318632000,-300.0,0.00013753,2]
[426332291,1782318632000,-395.63650625,0.00014605,2]
[426332258,1782318632000,-151.0,0.00013991,2]
[426332285,1782318632000,-317.0,0.00014212,2]
[426332288,1782318632000,-160.02,0.0001437,2]
[426332286,1782318632000,-315.0,0.00014212,2]
[426332287,1782318632000,-388.44,0.00014308,2]
[426332289,1782318632000,-841.63004098,0.000145,2]
[426332304,1782318632000,-6314.80265733,0.00014882,2]
[426332294,1782318632000,-1439.25259365,0.000148,2]
[426332292,1782318632000,-700.0,0.00014619,2]
[426332296,1782318632000,-940.98201364,0.000148,2]
[426332290,1782318632000,-500.0,0.00014504,2]
[426332284,1782318632000,-500.0,0.0001419,2]
[426332300,1782318632000,-200.0,0.0001488,2]
[426332299,1782318632000,-100.19093959,0.00014879,2]
[426332297,1782318632000,-177.12529327,0.00014875,2]
[426332298,1782318632000,-50.80906041,0.00014879,2]
[426332302,1782318632000,-181.87692304,0.00014881,2]
[426332301,1782318632000,-318.12307696,0.00014881,2]
[426332305,1782318632000,-2609.28014738,0.00014882,2]
[426332307,1782318632000,-1173.75181457,0.00014882,2]
[426332303,1782318632000,-142.93497995,0.00014882,2]
[426332306,1782318632000,-2168.09710004,0.00014882,2]
[426332256,1782318632000,-172.72973787,0.00013921,2]
[426332295,1782318632000,-458.68987844,0.000148,2]
[426332283,1782318632000,-500.0,0.0001419,2]
[426332293,1782318632000,-689.70322112,0.0001466,2]
[426332281,1782318632000,-239.266009,0.00014,2]
[426332257,1782318632000,-178.0,0.0001393,2]
[426332262,1782318632000,-151.0,0.00013991,2]
[426332282,1782318632000,-250.0,0.00014,2]
[426332263,1782318632000,-318.0,0.00013991,2]
[426332260,1782318632000,-315.0,0.00013991,2]
[426332265,1782318632000,-152.0,0.00013991,2]
[426332259,1782318632000,-151.0,0.00013991,2]
[426332261,1782318632000,-309.0,0.00013991,2]
[426332266,1782318632000,-320.0,0.00013991,2]
[426332269,1782318632000,-152.0,0.00013991,2]
[426332268,1782318632000,-151.0,0.00013991,2]
[426332267,1782318632000,-311.0,0.00013991,2]
[426332264,1782318632000,-313.0,0.00013991,2]
[426332271,1782318632000,-321.0,0.00013991,2]
[426332276,1782318632000,-314.0,0.00013993,2]
[426332280,1782318632000,-216.42324807,0.00013999,2]
[426332273,1782318632000,-319.0,0.00013992,2]
[426332274,1782318632000,-151.0,0.00013992,2]
[426332277,1782318632000,-318.0,0.00013993,2]
[426332275,1782318632000,-317.0,0.00013993,2]
[426332272,1782318632000,-312.0,0.00013991,2]
[426332279,1782318632000,-310.0,0.00013995,2]
[426332278,1782318632000,-151.0,0.00013994,2]
[426332270,1782318632000,-321.0,0.00013991,2]
[426332316,1782318637000,-166.66,0.00011958,2]
[426332318,1782318637000,-166.66,0.00012451,2]
[426332315,1782318637000,-166.66,0.00011711,2]
[426332317,1782318637000,-166.66,0.00012204,2]
[426332320,1782318637000,-166.66,0.00012944,2]
[426332319,1782318637000,-166.66,0.00012697,2]
[426332326,1782318638000,-7769.37753702,0.00014882,2]
[426332325,1782318638000,-810.33391451,0.00014882,2]
[426332324,1782318638000,-2970.00001,0.00014882,2]
[426332323,1782318638000,-988.23777312,0.00014882,2]
[426332322,1782318638000,-452.75928489,0.00014882,2]
[426332321,1782318638000,-51529.44838867,0.00014882,2]
[426332341,1782318640000,-1247.55451414,0.00014882,2]
[426332342,1782318640000,-4868.32663546,0.00014882,2]
[426332343,1782318640000,-276.86,0.00014882,2]
[426332386,1782318644000,-270.41294261,0.0001232,2]
[426332384,1782318644000,-1200.0,0.00014882,2]
[426332385,1782318644000,-451.45696436,0.00014882,2]
[426332389,1782318646000,-6427.29895667,0.00014882,2]
[426332391,1782318646000,-516.9985199,0.00014882,2]
[426332388,1782318646000,-342.03777047,0.0001232,2]
[426332392,1782318646000,-2784.96422352,0.00014882,2]
[426332390,1782318646000,-606.35,0.00014882,2]
[426332393,1782318646000,-1374.83906963,0.00014882,2]
[426332404,1782318647000,-87991.78431911,0.00014882,2]
[426332403,1782318647000,-500.0,0.00014881,2]
[426332402,1782318647000,-12957.25836996,0.00014882,2]
[426332401,1782318647000,-562.4988959,0.00014882,2]
[426332400,1782318647000,-3270.69083079,0.00014882,2]
[426332408,1782318721000,282.82833059,7.84e-05,2]
[426332414,1782318895000,-321.0,0.00013096,2]
[426332419,1782319261000,-321.0,0.00013095,2]
[426332427,1782319615000,-257.12123055,0.00013094,2]
[426332430,1782319698000,150.62,0.00028767,120]
[426332431,1782319739000,550.14550013,9.042e-05,2]
[426332447,1782319831000,-500.0,0.00012334,2]
[426332445,1782319831000,-166.66,0.00012205,2]
[426332450,1782319831000,-166.66,0.00012719,2]
[426332446,1782319831000,-150.0,0.0001227,2]
[426332448,1782319831000,-166.66,0.00012462,2]
[426332491,1782319832000,-150.0,0.00013094,2]
[426332478,1782319832000,-152.0,0.00013094,2]
[426332480,1782319832000,-150.0,0.00013094,2]
[426332497,1782319832000,-9999.99,0.00013094,2]
[426332484,1782319832000,-150.0,0.00013094,2]
[426332495,1782319832000,-150.0,0.00013094,2]
[426332477,1782319832000,-300.0,0.00013094,2]
[426332499,1782319832000,-5695.57,0.00013094,2]
[426332487,1782319832000,-151.0,0.00013094,2]
[426332501,1782319832000,-150.99,0.00013094,2]
[426332493,1782319832000,-152.0,0.00013094,2]
[426332524,1782319832000,-151.0,0.00013095,2]
[426332485,1782319832000,-150.0,0.00013094,2]
[426332505,1782319832000,-152.0,0.00013094,2]
[426332507,1782319832000,-152.0,0.00013094,2]
[426332509,1782319832000,-152.0,0.00013094,2]
[426332511,1782319832000,-152.0,0.00013094,2]
[426332521,1782319832000,-313.0,0.00013095,2]
[426332526,1782319832000,-320.0,0.00013095,2]
[426332481,1782319832000,-150.0,0.00013094,2]
[426332528,1782319832000,-313.0,0.00013095,2]
[426332515,1782319832000,-150.0,0.00013095,2]
[426332530,1782319832000,-150.0,0.00013095,2]
[426332519,1782319832000,-316.0,0.00013095,2]
[426332517,1782319832000,-321.0,0.00013095,2]
[426332503,1782319832000,-7225.33,0.00013094,2]
[426332475,1782319832000,-315.0,0.00013094,2]
[426332466,1782319832000,-567.34051296,0.00013093,2]
[426332479,1782319832000,-152.0,0.00013094,2]
[426332513,1782319832000,-292.0,0.00013094,2]
[426332451,1782319832000,-5850.5,0.00012874,2]
[426332455,1782319832000,-150.0,0.00012994,2]
[426332453,1782319832000,-160.0,0.00012875,2]
[426332458,1782319832000,-229.61593129,0.00013093,2]
[426332460,1782319832000,-500.0,0.00013093,2]
[426332459,1782319832000,-500.0,0.00013093,2]
[426332454,1782319832000,-166.66,0.00012976,2]
[426332457,1782319832000,-420.0,0.0001309,2]
[426332452,1782319832000,-216.42324807,0.00012875,2]
[426332456,1782319832000,-150.0,0.00012996,2]
[426332462,1782319832000,-413.59849202,0.00013093,2]
[426332476,1782319832000,-315.0,0.00013094,2]
[426332472,1782319832000,-151.0,0.00013094,2]
[426332464,1782319832000,-500.0,0.00013093,2]
[426332461,1782319832000,-179.98486139,0.00013093,2]
[426332467,1782319832000,-316.0,0.00013094,2]
[426332471,1782319832000,-151.0,0.00013094,2]
[426332469,1782319832000,-152.0,0.00013094,2]
[426332470,1782319832000,-153.0,0.00013094,2]
[426332468,1782319832000,-322.0,0.00013094,2]
[426332465,1782319832000,-500.0,0.00013093,2]
[426332473,1782319832000,-151.0,0.00013094,2]
[426332474,1782319832000,-309.0,0.00013094,2]
[426332483,1782319832000,-151.0,0.00013094,2]
[426332482,1782319832000,-150.0,0.00013094,2]
[426332463,1782319832000,-192.04237347,0.00013093,2]
[426332532,1782319832000,-314.0,0.00013095,2]
[426332572,1782319832000,-315.0,0.00013095,2]
[426332535,1782319832000,-151.0,0.00013095,2]
[426332595,1782319832000,-311.0,0.00013096,2]
[426332598,1782319832000,-151.0,0.00013096,2]
[426332614,1782319832000,-309.0,0.00013096,2]
[426332615,1782319832000,-150.0,0.00013096,2]
[426332608,1782319832000,-150.0,0.00013096,2]
[426332603,1782319832000,-314.0,0.00013096,2]
[426332611,1782319832000,-312.0,0.00013096,2]
[426332613,1782319832000,-315.0,0.00013096,2]
[426332606,1782319832000,-313.0,0.00013096,2]
[426332612,1782319832000,-150.0,0.00013096,2]
[426332605,1782319832000,-153.0,0.00013096,2]